bitfinex/quotes_BTCUSD_20220111
["timestamp","ask_amount","ask_price","bid_price","bid_amount"]
[1641874477565,2.263669,42159.0,42158.0,0.00136204]
[1641874477766,1.008669,42159.0,42158.0,0.00136204]
[1641874477966,2.263669,42159.0,42158.0,0.00136204]
[1641874478566,2.242669,42159.0,42158.0,0.00136204]
[1641874478826,2.482669,42159.0,42158.0,0.00136204]
[1641874479215,2.493669,42159.0,42158.0,0.00136204]
[1641874479817,1.26697949,42159.0,42158.0,0.00136204]
[1641874480017,0.64967949,42159.0,42158.0,0.00136204]
[1641874480219,0.251,42159.0,42158.0,0.00136204]
[1641874480516,0.24,42159.0,42158.0,0.00136204]
[1641874481317,0.613369,42159.0,42158.0,0.00136204]
[1641874482117,0.67051388,42159.0,42158.0,0.00136204]
[1641874482566,0.61751388,42159.0,42158.0,0.00136204]
[1641874482766,0.94559506,42159.0,42158.0,0.00136204]
[1641874482966,0.76751388,42159.0,42158.0,0.00136204]
[1641874483366,0.78051388,42159.0,42158.0,0.00136204]
[1641874483767,2.03551388,42159.0,42158.0,0.00136204]
[1641874484567,2.02251388,42159.0,42158.0,0.00136204]
[1641874484869,0.76751388,42159.0,42158.0,0.00136204]
[1641874485267,1.09262794,42159.0,42158.0,0.00136204]
[1641874485467,1.08258657,42159.0,42158.0,0.00136204]
[1641874486414,1.07258657,42159.0,42158.0,0.00136204]
[1641874486613,0.76751388,42159.0,42158.0,0.00136204]
[1641874487315,0.77851388,42159.0,42158.0,0.00136204]
[1641874488518,0.76751388,42159.0,42158.0,0.00136204]
[1641874489220,0.77851388,42159.0,42158.0,0.00136204]
[1641874490569,2.02251388,42159.0,42158.0,0.00136204]
[1641874490770,0.76751388,42159.0,42158.0,0.00136204]
[1641874491369,0.77751388,42159.0,42158.0,0.00136204]
[1641874492571,2.02251388,42159.0,42158.0,0.00136204]
[1641874492872,0.66751388,42159.0,42158.0,0.00136204]
[1641874493272,0.67851388,42159.0,42158.0,0.00136204]
[1641874493574,0.77851388,42159.0,42158.0,0.00136204]
[1641874494516,0.76751388,42159.0,42158.0,0.00136204]
[1641874494915,2.02251388,42159.0,42158.0,0.00136204]
[1641874495115,0.61751388,42159.0,42158.0,0.00136204]
[1641874495314,0.62851388,42159.0,42156.0,0.00070868]
[1641874495517,0.370369,42158.0,42157.0,0.33600901]
[1641874495718,0.370369,42158.0,42157.0,0.65867768]
[1641874495914,0.370369,42158.0,42157.0,0.33600901]
[1641874496116,0.25814488,42159.0,42157.0,0.33600901]
[1641874496316,0.25814488,42159.0,42156.0,0.00070871]
[1641874496615,0.29714488,42159.0,42156.0,0.00070871]
[1641874496816,0.370369,42158.0,42155.0,0.0160684]
[1641874497021,0.24,42159.0,42155.0,0.0160684]
[1641874497318,0.004,42158.0,42157.0,1.3514759]
[1641874497570,0.004,42158.0,42157.0,1.5862759]
[1641874497968,0.004,42158.0,42157.0,1.9056494]
[1641874498570,0.24,42159.0,42157.0,1.9056494]
[1641874498771,0.24,42159.0,42158.0,1.087495]
[1641874498971,0.24,42159.0,42158.0,0.234795]
[1641874499370,0.24,42159.0,42158.0,0.834795]
[1641874499573,0.24,42159.0,42158.0,1.14428967]
[1641874499972,0.03597378,42164.0,42161.0,0.059297]
[1641874500173,0.03603187,42167.0,42162.0,0.55536062]
[1641874500371,0.42077533,42169.0,42164.0,0.059294]
[1641874500572,0.42075205,42169.0,42168.0,0.27632393]
[1641874500773,0.00075205,42169.0,42165.0,0.31131245]
[1641874501172,0.00075205,42169.0,42164.0,0.106594]
[1641874501419,0.00775205,42169.0,42165.0,0.30848475]
[1641874501621,0.00775227,42169.0,42167.0,0.059295]
[1641874501820,0.00775227,42169.0,42168.0,1.99705058]
[1641874502016,0.00775227,42169.0,42168.0,2.04705058]
[1641874502417,0.00775227,42169.0,42168.0,2.32615724]
[1641874502619,0.00075227,42169.0,42168.0,2.32615724]
[1641874502820,0.00075228,42171.0,42168.0,2.32615724]
[1641874503021,0.00075228,42171.0,42169.0,0.059288]
[1641874503221,0.00075228,42171.0,42170.0,0.234722]
[1641874503420,0.00075228,42171.0,42170.0,0.584722]
[1641874504020,0.00055363,42173.0,42170.0,0.584722]
[1641874505372,0.009,42173.0,42170.0,0.655009]
[1641874505572,0.009,42173.0,42170.0,0.705009]
[1641874506573,0.009,42173.0,42170.0,0.694009]
[1641874506774,0.00055364,42174.0,42170.0,0.694009]
[1641874506977,0.00055364,42174.0,42170.0,0.344009]
[1641874507376,0.00055364,42174.0,42172.0,0.00024078]
[1641874507576,0.00115732,42174.0,42173.0,0.3973]
[1641874507777,0.00060368,42174.0,42173.0,0.234704]
[1641874508835,0.62616609,42174.0,42173.0,0.0473]
[1641874509025,0.74653509,42174.0,42173.0,0.0473]
[1641874509422,0.74653509,42174.0,42173.0,0.0983]
[1641874509423,0.75749468,42174.0,42173.0,0.0983]
[1641874509623,1.00391833,42174.0,42173.0,0.0983]
[1641874510028,1.24391833,42174.0,42173.0,0.0983]
[1641874510626,1.24391833,42174.0,42172.0,0.00024078]
[1641874510823,0.370369,42173.0,42172.0,0.00024078]
[1641874511525,0.49738324,42174.0,42172.0,0.00724078]
[1641874511725,0.26191918,42174.0,42172.0,0.00724078]
[1641874512573,0.26191918,42174.0,42172.0,0.05953178]
[1641874513373,0.26191918,42174.0,42172.0,0.06553178]
[1641874514475,0.24,42174.0,42172.0,0.06553178]
[1641874514675,0.24,42174.0,42172.0,0.00024078]
[1641874514875,0.02191918,42173.0,42172.0,0.00024078]
[1641874515079,0.02191918,42173.0,42172.0,0.18765078]
[1641874515275,0.02191918,42173.0,42172.0,0.19565078]
[1641874515476,0.02191918,42173.0,42172.0,0.00824078]
[1641874516517,0.02191918,42173.0,42172.0,0.00024078]
[1641874516817,0.30469421,42173.0,42172.0,0.00024078]
[1641874517019,0.02191918,42173.0,42172.0,0.00024078]
[1641874517418,0.02191918,42173.0,42172.0,0.31]
[1641874517722,0.02191918,42173.0,42172.0,0.01]
[1641874517918,0.35830471,42173.0,42172.0,0.01]
[1641874518118,0.02191918,42173.0,42172.0,0.01]
[1641874518823,0.02191918,42173.0,42170.0,0.3862451]
[1641874519019,0.02191918,42173.0,42171.0,0.187414]
[1641874519819,0.24059365,42174.0,42171.0,0.187414]
[1641874520071,0.02191918,42172.0,42171.0,0.187414]
[1641874520670,0.02191918,42172.0,42170.0,0.3982451]
[1641874520871,0.02191918,42172.0,42170.0,0.3862451]
[1641874521473,0.02191918,42172.0,42170.0,0.073287]
[1641874521873,0.02191918,42172.0,42170.0,0.014]
[1641874522272,0.30715996,42172.0,42170.0,0.014]
[1641874522472,0.30715996,42172.0,42171.0,0.00024096]
[1641874522876,0.67752896,42172.0,42171.0,0.00024096]
[1641874523474,0.67752896,42172.0,42171.0,0.01324096]
[1641874523674,0.39228818,42172.0,42171.0,0.01324096]
[1641874524520,0.39228818,42172.0,42171.0,0.00024096]
[1641874524720,0.02191918,42172.0,42171.0,0.00024096]
[1641874525424,0.02191918,42172.0,42171.0,0.01324096]
[1641874526827,0.39228818,42172.0,42171.0,0.01324096]
[1641874527229,0.44943099,42172.0,42171.0,0.01324096]
[1641874527676,0.54943099,42172.0,42171.0,0.01324096]
[1641874528972,0.54943099,42172.0,42171.0,0.00024096]
[1641874529374,0.46743099,42172.0,42171.0,0.00024096]
[1641874529575,0.56743099,42172.0,42171.0,0.00024096]
[1641874530380,0.89590826,42172.0,42171.0,0.00024096]
[1641874530579,0.95183447,42172.0,42171.0,0.00024096]
[1641874530974,2.66293302,42172.0,42171.0,0.00024096]
[1641874531331,2.46093302,42172.0,42171.0,0.00024096]
[1641874532119,2.96093302,42172.0,42171.0,0.00024096]
[1641874532320,2.96093302,42172.0,42159.0,0.27605251]
[1641874532524,0.32923968,42165.0,42159.0,0.27605251]
[1641874532721,0.6534237,42165.0,42159.0,0.27605251]
[1641874532921,0.01095959,42162.0,42159.0,0.27605251]
[1641874533125,0.02191918,42162.0,42159.0,0.27605251]
[1641874533323,0.03591918,42162.0,42159.0,0.28105251]
[1641874534225,0.03591918,42162.0,42159.0,0.00524096]
[1641874534425,0.29322536,42161.0,42159.0,0.00524096]
[1641874534626,0.03591918,42162.0,42159.0,0.00524096]
[1641874534627,0.370369,42160.0,42159.0,0.00524096]
[1641874535275,0.370369,42160.0,42159.0,0.00024096]
[1641874535475,0.410369,42160.0,42159.0,0.00124096]
[1641874535677,0.04,42160.0,42159.0,0.00124096]
[1641874536675,0.02191918,42162.0,42159.0,0.00024096]
[1641874536873,0.370369,42161.0,42159.0,0.00024096]
[1641874537074,0.02766959,42160.0,42159.0,0.00024096]
[1641874537278,0.69141761,42160.0,42155.0,0.01631155]
[1641874537474,0.39803859,42160.0,42155.0,0.01631155]
[1641874538076,0.01095959,42158.0,42155.0,0.28775024]
[1641874538477,0.02191918,42158.0,42155.0,0.28775024]
[1641874539319,0.02191918,42158.0,42155.0,0.31475024]
[1641874539519,0.02391918,42158.0,42155.0,0.31475024]
[1641874539920,0.26391918,42158.0,42155.0,0.37406224]
[1641874540321,0.26391918,42158.0,42156.0,0.187506]
[1641874540721,0.26191918,42158.0,42156.0,0.187506]
[1641874540925,0.26191918,42158.0,42155.0,0.28775024]
[1641874541121,0.26191918,42158.0,42155.0,0.01631155]
[1641874541322,0.26391918,42158.0,42155.0,0.03231155]
[1641874542322,0.26391918,42158.0,42157.0,0.30024351]
[1641874542570,0.26391918,42158.0,42155.0,0.00631191]
[1641874542770,0.26191918,42158.0,42155.0,0.00631191]
[1641874542970,0.4076521,42157.0,42155.0,0.00631191]
[1641874543374,0.370369,42156.0,42155.0,0.00931191]
[1641874543577,0.38132859,42156.0,42155.0,0.00931191]
[1641874543774,0.39228818,42156.0,42155.0,0.00931191]
[1641874544773,0.39228818,42156.0,42155.0,0.00631191]
[1641874545375,0.69893891,42156.0,42155.0,0.01731191]
[1641874545773,0.40228818,42156.0,42155.0,0.01731191]
[1641874546633,0.70321091,42156.0,42155.0,0.00631191]
[1641874546824,0.39228818,42156.0,42155.0,0.00631191]
[1641874547222,0.39228818,42156.0,42155.0,0.00657614]
[1641874547523,0.32951858,42156.0,42155.0,0.01957614]
[1641874547723,0.03191918,42156.0,42155.0,0.01957614]
[1641874547924,0.40228818,42156.0,42155.0,0.01957614]
[1641874548224,0.69653876,42156.0,42155.0,0.01957614]
[1641874548624,0.39228818,42156.0,42155.0,0.00657614]
[1641874549224,0.68755755,42156.0,42155.0,0.00657614]
[1641874549424,0.40128818,42156.0,42155.0,0.01657614]
[1641874550274,0.40128818,42156.0,42155.0,0.00896909]
[1641874550275,0.39497627,42156.0,42155.0,0.00896909]
[1641874550469,0.39032859,42156.0,42155.0,0.00896909]
[1641874550671,0.6932036,42156.0,42155.0,0.00896909]
[1641874551270,0.6932036,42156.0,42154.0,0.0011]
[1641874551271,0.6842036,42156.0,42154.0,0.0011]
[1641874551475,0.29617259,42155.0,42154.0,0.0011]
[1641874551672,0.38503259,42155.0,42154.0,0.0011]
[1641874552070,0.39599218,42155.0,42154.0,0.0011]
[1641874552671,0.02562318,42155.0,42154.0,0.0011]
[1641874553473,0.03462318,42155.0,42154.0,0.0191]
[1641874554129,0.01995959,42155.0,42154.0,0.0191]
[1641874554830,0.01095959,42155.0,42154.0,1.2511]
[1641874555027,0.01095959,42155.0,42154.0,1.82995547]
[1641874555327,0.01095959,42155.0,42154.0,1.485918]
[1641874555527,0.01095959,42155.0,42154.0,1.501918]
[1641874555927,0.01560727,42155.0,42154.0,1.501918]
[1641874556826,0.01560727,42155.0,42154.0,1.485918]
[1641874557327,0.01560727,42155.0,42154.0,0.23616042]
[1641874557569,0.01560727,42155.0,42154.0,0.08564242]
[1641874557771,0.01560727,42155.0,42154.0,0.38564242]
[1641874558774,0.01560727,42155.0,42154.0,0.69864242]
[1641874558973,0.01560727,42155.0,42154.0,0.88616042]
[1641874559576,0.01560727,42155.0,42154.0,0.93316042]
[1641874560778,0.01560727,42155.0,42154.0,0.88616042]
[1641874561178,0.01560727,42155.0,42154.0,0.53616042]
[1641874561430,0.01560727,42155.0,42154.0,0.59816042]
[1641874561431,0.01660727,42155.0,42154.0,0.59816042]
[1641874562532,0.01660727,42155.0,42154.0,0.29816042]
[1641874562733,0.01660727,42155.0,42154.0,0.11064242]
[1641874563332,0.01560727,42155.0,42154.0,0.04864242]
[1641874563534,0.01660727,42155.0,42154.0,0.09664242]
[1641874563735,0.01660727,42155.0,42154.0,0.54664242]
[1641874564836,0.01560727,42155.0,42154.0,0.49864242]
[1641874565273,0.01560727,42155.0,42154.0,0.68616042]
[1641874565472,0.01560727,42155.0,42154.0,0.74916042]
[1641874565672,0.01560727,42155.0,42154.0,1.06776396]
[1641874566675,0.01560727,42155.0,42154.0,1.00476396]
[1641874567577,0.01660727,42155.0,42154.0,1.06676396]
[1641874567777,0.01660727,42155.0,42154.0,1.06176396]
[1641874568478,0.01660727,42155.0,42154.0,0.74316042]
[1641874568679,0.01660727,42155.0,42154.0,0.29316042]
[1641874568924,0.01560727,42155.0,42154.0,0.18776042]
[1641874569125,0.07401143,42155.0,42154.0,0.00024242]
[1641874569527,0.07575221,42155.0,42154.0,0.02424242]
[1641874570724,0.07275221,42155.0,42154.0,0.00024242]
[1641874570927,0.06560727,42155.0,42154.0,0.00024242]
[1641874571124,0.01560727,42155.0,42154.0,0.00024242]
[1641874571525,0.01860727,42155.0,42154.0,0.02624242]
[1641874572772,0.01560727,42155.0,42154.0,0.00024242]
[1641874573573,0.01960727,42155.0,42154.0,0.02524242]
[1641874574577,0.01960727,42155.0,42154.0,0.62524242]
[1641874574779,0.01560727,42155.0,42154.0,0.78776042]
[1641874575579,0.01860727,42155.0,42154.0,0.81576042]
[1641874576822,0.01560727,42155.0,42154.0,0.18776042]
[1641874577019,0.01560727,42155.0,42154.0,0.00024242]
[1641874577220,0.01560727,42155.0,42152.0,0.00095096]
[1641874577619,0.00764768,42155.0,42154.0,0.031]
[1641874577820,0.003,42155.0,42154.0,0.031]
[1641874578021,0.01860727,42155.0,42154.0,0.031]
[1641874578822,0.01560727,42155.0,42154.0,0.0139]
[1641874579622,0.01860727,42155.0,42154.0,0.4399]
[1641874579823,0.01860727,42155.0,42154.0,0.627418]
[1641874580089,0.60199515,42174.0,42155.0,1.35]
[1641874580282,0.60199515,42174.0,42168.0,0.00126626]
[1641874580485,0.60199515,42174.0,42168.0,1.19856626]
[1641874580683,1.20399515,42175.0,42168.0,1.71281836]
[1641874581080,0.00059384,42171.0,42168.0,1.71281836]
[1641874581280,0.24,42169.0,42168.0,0.37538436]
[1641874581480,0.272,42169.0,42168.0,0.68138436]
[1641874581680,0.272,42169.0,42168.0,0.56881836]
[1641874582381,0.272,42169.0,42168.0,0.62834181]
[1641874582588,0.272,42169.0,42168.0,0.94442745]
[1641874582782,0.24,42169.0,42168.0,0.93842745]
[1641874583584,0.274,42169.0,42168.0,0.94642745]
[1641874584722,0.274,42169.0,42168.0,0.93842745]
[1641874584922,0.24,42169.0,42168.0,0.93842745]
[1641874585523,0.274,42169.0,42168.0,0.94642745]
[1641874586724,0.274,42169.0,42168.0,0.93842745]
[1641874587024,0.24,42169.0,42168.0,0.93842745]
[1641874587223,0.24,42169.0,42168.0,0.62234181]
[1641874587678,0.274,42169.0,42168.0,0.63034181]
[1641874587874,0.274,42169.0,42168.0,0.62534181]
[1641874588274,0.274,42169.0,42168.0,0.29852371]
[1641874588475,0.274,42169.0,42168.0,0.71852371]
[1641874588677,0.274,42169.0,42168.0,0.65923971]
[1641874588875,0.24714203,42169.0,42168.0,0.65123971]
[1641874589474,0.24714203,42169.0,42168.0,0.68523971]
[1641874590378,0.24714203,42169.0,42168.0,0.98523971]
[1641874590579,0.24714203,42169.0,42168.0,1.36406275]
[1641874590879,0.24714203,42169.0,42168.0,1.33006275]
[1641874591178,0.24714203,42169.0,42168.0,0.91006275]
[1641874591625,0.24714203,42169.0,42168.0,0.60851971]
[1641874591830,0.24714203,42169.0,42168.0,0.92640678]
[1641874592226,0.4843858,42175.0,42169.0,0.8]
[1641874592427,0.49152686,42175.0,42170.0,0.0473]
[1641874592626,0.05714106,42175.0,42172.0,0.11855914]
[1641874592831,0.05714106,42175.0,42173.0,0.234703]
[1641874593027,0.00714106,42175.0,42173.0,0.234703]
[1641874593631,0.00714106,42175.0,42173.0,0.241703]
[1641874593827,0.00714106,42175.0,42173.0,0.0543]
[1641874594829,0.00714106,42175.0,42173.0,0.0473]
[1641874595480,0.00714106,42175.0,42173.0,0.10657858]
[1641874595675,0.00714106,42175.0,42174.0,0.86125828]
[1641874595978,0.00714106,42175.0,42174.0,0.54595628]
[1641874596375,0.00714106,42175.0,42174.0,0.94595628]
[1641874596577,0.00714106,42175.0,42174.0,0.54595628]
[1641874596776,0.00714106,42175.0,42174.0,0.234698]
[1641874597477,0.00714106,42175.0,42174.0,0.23493617]
[1641874597676,0.00059257,42177.0,42174.0,0.55482602]
[1641874597877,0.00058889,42177.0,42175.0,0.187391]
[1641874598078,0.00058889,42177.0,42176.0,0.7973]
[1641874598276,0.00058889,42177.0,42176.0,0.984685]
[1641874598676,0.00058889,42177.0,42176.0,0.234685]
[1641874599125,0.0005889,42179.0,42176.0,0.234685]
[1641874599322,0.0005889,42179.0,42177.0,0.187379]
[1641874599524,0.0005889,42179.0,42178.0,0.0473]
[1641874600225,0.32954423,42181.0,42178.0,0.0473]
[1641874601026,0.00058892,42181.0,42178.0,0.0473]
[1641874601327,0.00058992,42182.0,42178.0,0.0473]
[1641874601625,0.00058992,42182.0,42178.0,0.0533]
[1641874602025,0.24,42181.0,42178.0,0.0533]
[1641874602227,0.54105108,42181.0,42178.0,0.0533]
[1641874602426,0.54105108,42181.0,42180.0,0.0002369]
[1641874602677,0.24,42181.0,42180.0,0.0475369]
[1641874603676,0.24,42181.0,42180.0,0.0505369]
[1641874604875,0.24,42181.0,42180.0,0.0475369]
[1641874605675,0.24,42181.0,42180.0,0.0515369]
[1641874606925,0.24,42181.0,42180.0,0.0475369]
[1641874607625,0.24,42181.0,42180.0,0.0505369]
[1641874608926,0.24,42181.0,42180.0,0.0475369]
[1641874609128,0.24,42181.0,42180.0,0.0425369]
[1641874609527,0.24,42181.0,42180.0,0.0465369]
[1641874610979,0.24,42181.0,42180.0,0.0425369]
[1641874611675,0.24,42181.0,42180.0,0.0475369]
[1641874612478,0.24,42181.0,42180.0,0.04779749]
[1641874612877,0.24,42181.0,42180.0,0.04279749]
[1641874613682,0.24,42181.0,42180.0,0.04779749]
[1641874614921,0.24,42181.0,42180.0,0.04279749]
[1641874615722,0.24,42181.0,42180.0,0.04879749]
[1641874617023,0.29,42181.0,42180.0,0.04279749]
[1641874617674,0.29,42181.0,42180.0,0.04879749]
[1641874618075,0.24,42181.0,42180.0,0.04879749]
[1641874618878,0.24,42181.0,42180.0,0.04279749]
[1641874619076,0.24,42181.0,42180.0,0.29279749]
[1641874619275,0.24,42181.0,42180.0,0.04279749]
[1641874619675,0.24,42181.0,42180.0,0.04879749]
[1641874620879,0.24,42181.0,42180.0,0.04279749]
[1641874621724,0.24,42181.0,42180.0,0.04879749]
[1641874622523,0.24,42181.0,42180.0,0.04379749]
[1641874622726,0.610369,42181.0,42180.0,0.04379749]
[1641874623024,0.610369,42181.0,42180.0,0.00626059]
[1641874623223,0.660369,42181.0,42180.0,0.00626059]
[1641874623724,0.676369,42181.0,42180.0,0.00626059]
[1641874623924,0.626369,42181.0,42180.0,0.00026059]
[1641874624825,0.95439036,42181.0,42180.0,0.00026059]
[1641874625078,0.93839036,42181.0,42180.0,0.00026059]
[1641874625678,0.95639036,42181.0,42180.0,0.00026059]
[1641874625878,1.00639036,42181.0,42180.0,0.00026059]
[1641874626078,0.95639036,42181.0,42180.0,0.00026059]
[1641874626881,0.93839036,42181.0,42180.0,0.00026059]
[1641874627278,0.93839036,42181.0,42172.0,0.34089905]
[1641874627478,0.34189239,42179.0,42172.0,0.34089905]
[1641874627678,0.32469898,42174.0,42172.0,0.00026059]
[1641874629526,0.00058965,42175.0,42172.0,0.00026059]
[1641874629725,0.007,42174.0,42172.0,0.03926059]
[1641874630726,0.007,42174.0,42172.0,0.03426059]
[1641874631027,0.00058965,42176.0,42170.0,0.31455115]
[1641874631424,0.0005897,42175.0,42166.0,0.00122228]
[1641874631624,0.0005897,42175.0,42170.0,0.022]
[1641874632428,0.0005897,42175.0,42173.0,0.00023632]
[1641874632675,0.00058969,42175.0,42173.0,0.00023632]
[1641874633678,0.00858969,42175.0,42173.0,0.02123632]
[1641874633878,0.008,42175.0,42173.0,0.02123632]
[1641874634980,0.00058969,42176.0,42173.0,0.00023632]
[1641874635781,0.00858969,42176.0,42173.0,0.01623632]
[1641874636182,0.008,42176.0,42173.0,0.01623632]
[1641874637025,0.31179698,42177.0,42173.0,0.00023632]
[1641874637229,0.60695873,42177.0,42170.0,0.28649243]
[1641874637626,0.31179698,42177.0,42170.0,0.28649243]
[1641874637827,0.31979698,42177.0,42173.0,0.015]
[1641874639030,0.31106643,42177.0,42170.0,0.00023581]
[1641874639534,0.31106643,42177.0,42167.0,0.05928845]
[1641874639734,0.00058968,42176.0,42170.0,0.019]
[1641874640975,0.00058968,42175.0,42169.0,0.33898153]
[1641874641176,0.00058968,42175.0,42167.0,0.05452426]
[1641874641578,0.00058968,42175.0,42164.0,0.17853392]
[1641874641579,0.00058968,42175.0,42164.0,0.00070884]
[1641874641781,0.00125254,42172.0,42167.0,0.034]
[1641874641978,0.370369,42171.0,42167.0,0.034]
[1641874642177,0.64415631,42170.0,42167.0,0.034]
[1641874642380,0.32594531,42170.0,42167.0,0.034]
[1641874642983,0.15922842,42187.0,42170.0,1.35]
[1641874643186,0.08813468,42212.0,42199.0,0.15]
[1641874643480,0.08813468,42212.0,42194.0,0.00321804]
[1641874643481,0.80893379,42233.0,42209.0,0.00128932]
[1641874643679,1.2031746,42238.0,42232.0,0.5913]
[1641874643944,1.2031746,42238.0,42236.0,0.5913]
[1641874643945,0.1243,42237.0,42236.0,0.5913]
[1641874644142,0.1243,42237.0,42236.0,0.0473]
[1641874644344,1.2031746,42238.0,42236.0,0.0473]
[1641874644345,1.8678,42250.0,42236.0,0.04850527]
[1641874644348,1.39802495,42249.0,42236.0,0.04850527]
[1641874644547,0.98087702,42246.0,42236.0,0.00120527]
[1641874644843,0.370369,42245.0,42236.0,0.00120527]
[1641874645048,0.98087702,42246.0,42235.0,0.04105]
[1641874645049,0.33959908,42244.0,42235.0,0.04105]
[1641874645242,0.00713362,42240.0,42237.0,0.00126508]
[1641874645444,0.0473,42241.0,42235.0,0.01888]
[1641874645642,0.0473,42241.0,42233.0,0.05]
[1641874645643,0.1,42236.0,42233.0,0.05]
[1641874645844,0.43138384,42239.0,42233.0,0.05]
[1641874645845,0.370369,42235.0,42233.0,0.05]
[1641874646047,0.64555476,42235.0,42233.0,0.05]
[1641874646243,0.43138384,42239.0,42233.0,0.05]
[1641874646443,0.0473,42238.0,42234.0,0.00121268]
[1641874646648,0.0473,42238.0,42237.0,0.00121381]
[1641874646845,0.0473,42238.0,42215.0,1.0898]
[1641874646846,0.8459233,42238.0,42215.0,1.0898]
[1641874647046,0.1,42229.0,42227.0,0.05]
[1641874647344,0.3755543,42228.0,42227.0,0.05]
[1641874647580,0.417669,42228.0,42227.0,0.05]
[1641874648180,0.4673,42228.0,42227.0,0.05]
[1641874649078,0.4673,42228.0,42227.0,0.11968416]
[1641874649277,0.4673,42228.0,42227.0,0.06968416]
[1641874649278,0.937669,42228.0,42227.0,0.06968416]
[1641874649676,0.837669,42228.0,42227.0,0.06968416]
[1641874649876,0.948669,42228.0,42227.0,0.06968416]
[1641874650078,0.848669,42228.0,42227.0,0.06968416]
[1641874651078,0.837669,42228.0,42227.0,0.06968416]
[1641874651531,0.937669,42228.0,42227.0,0.06968416]
[1641874651729,1.16655571,42228.0,42227.0,0.06968416]
[1641874651932,0.850669,42228.0,42227.0,0.06968416]
[1641874652329,0.72380286,42228.0,42227.0,0.06968416]
[1641874652533,1.08795047,42228.0,42227.0,0.06976709]
[1641874652731,1.08795047,42228.0,42221.0,0.00126003]
[1641874652732,0.370369,42227.0,42221.0,0.05]
[1641874652937,0.1,42222.0,42209.0,0.60200955]
[1641874653132,0.1,42222.0,42212.0,0.05]
[1641874653133,0.1,42217.0,42212.0,0.05]
[1641874653332,0.0473,42221.0,42202.0,0.60200955]
[1641874653333,0.1,42213.0,42202.0,0.60200955]
[1641874653531,0.0473,42212.0,42209.0,0.05]
[1641874653733,0.33647894,42210.0,42209.0,0.05]
[1641874653932,0.75414794,42210.0,42209.0,0.05]
[1641874654335,0.417669,42210.0,42209.0,0.05]
[1641874654935,0.7509896,42210.0,42209.0,0.05]
[1641874655376,0.417669,42210.0,42209.0,0.05]
[1641874655780,0.423669,42210.0,42209.0,0.05]
[1641874655978,0.006,42210.0,42209.0,0.05]
[1641874656177,0.006,42210.0,42209.0,0.23842399]
[1641874656977,0.36027358,42211.0,42209.0,0.05123799]
[1641874657177,0.36027358,42211.0,42209.0,0.05]
[1641874657178,0.68821702,42211.0,42209.0,0.05]
[1641874657379,0.370369,42210.0,42209.0,0.05]
[1641874657577,0.68821702,42211.0,42209.0,0.05]
[1641874657777,0.69421702,42211.0,42209.0,0.05]
[1641874657976,0.370369,42210.0,42209.0,0.05]
[1641874658578,0.006,42211.0,42209.0,0.05]
[1641874659038,0.33768674,42214.0,42209.0,0.05]
[1641874659240,0.33768674,42214.0,42209.0,0.05122813]
[1641874659438,0.33768674,42214.0,42210.0,0.187182]
[1641874659639,0.33768674,42214.0,42209.0,0.05122813]
[1641874659840,0.34268674,42214.0,42209.0,0.00122813]
[1641874660040,0.34268674,42214.0,42210.0,0.05]
[1641874660243,0.370369,42213.0,42210.0,0.05081749]
[1641874660942,0.84902204,42213.0,42210.0,0.05081749]
[1641874661641,0.84902204,42213.0,42210.0,0.05]
[1641874661842,0.85402204,42213.0,42210.0,0.05]
[1641874662241,0.48365304,42213.0,42210.0,0.05]
[1641874662677,0.370369,42212.0,42210.0,0.05]
[1641874662883,0.005,42213.0,42210.0,0.05]
[1641874663079,0.4356553,42216.0,42210.0,0.05]
[1641874663279,1.80066487,42227.0,42210.0,0.05]
[1641874663483,0.1,42220.0,42210.0,0.05123464]
[1641874663681,0.370369,42219.0,42210.0,0.05123464]
[1641874663882,0.47913822,42214.0,42211.0,0.00069818]
[1641874664180,0.77815954,42214.0,42211.0,0.00069818]
[1641874664379,0.24,42213.0,42211.0,0.00069818]
[1641874665082,0.370369,42212.0,42210.0,0.05071219]
[1641874665279,0.24,42213.0,42210.0,0.05071219]
[1641874665880,0.370369,42212.0,42210.0,0.05071219]
[1641874666083,0.370369,42211.0,42210.0,0.05071219]
[1641874666345,0.370369,42211.0,42210.0,0.05]
[1641874667335,0.24,42213.0,42210.0,0.05]
[1641874667736,0.005,42211.0,42210.0,0.05]
[1641874668536,0.375369,42211.0,42210.0,0.05]
[1641874669139,0.370369,42211.0,42210.0,0.05]
[1641874669340,0.70445746,42213.0,42210.0,0.05]
[1641874669538,0.370344,42212.0,42210.0,0.05]
[1641874669738,0.005,42211.0,42210.0,0.05]
[1641874670980,0.24,42213.0,42210.0,0.05]
[1641874671479,0.24,42213.0,42210.0,0.10923538]
[1641874671879,0.246,42213.0,42210.0,0.10923538]
[1641874673081,0.24,42213.0,42210.0,0.05]
[1641874673280,0.36370967,42211.0,42210.0,0.05]
[1641874673682,0.73405367,42211.0,42210.0,0.05]
[1641874673932,0.73705367,42211.0,42210.0,0.05]
[1641874675133,0.24,42213.0,42210.0,0.05]
[1641874675333,0.24,42213.0,42211.0,0.05922869]
[1641874675533,0.24,42213.0,42212.0,0.370344]
[1641874675734,0.246,42213.0,42210.0,0.16966749]
[1641874676936,0.24,42213.0,42210.0,0.16966749]
[1641874677877,0.246,42213.0,42210.0,0.16966749]
[1641874678579,0.246,42213.0,42211.0,0.37828295]
[1641874678778,0.1,42223.0,42212.0,0.69354255]
[1641874678977,0.34043386,42228.0,42215.0,0.11845594]
[1641874679180,0.370344,42226.0,42215.0,0.11845594]
[1641874679377,0.1,42220.0,42212.0,0.32355823]
[1641874679577,0.41888567,42220.0,42219.0,0.00071128]
[1641874679777,0.78922967,42220.0,42219.0,0.00071128]
[1641874679979,0.370344,42220.0,42219.0,0.00071128]
[1641874680378,0.470344,42220.0,42219.0,0.00071128]
[1641874680579,0.875806,42220.0,42219.0,0.00071128]
[1641874680880,0.05058488,42218.0,42217.0,0.0007113]
[1641874681079,2.16168782,42218.0,42217.0,0.0007113]
[1641874681333,1.82322888,42218.0,42217.0,0.0007113]
[1641874681627,2.11186831,42218.0,42217.0,0.0007113]
[1641874681829,0.71755067,42218.0,42217.0,0.0007113]
[1641874682027,0.52891124,42218.0,42207.0,0.47514336]
[1641874682226,0.0573,42218.0,42207.0,0.47514336]
[1641874683029,0.34323493,42217.0,42207.0,0.47514336]